fUSD/lending_fUSD_20251103
["ID","MTS","AMOUNT","RATE_DAILY","PERIOD"]
[392958413,1762179040232,-268.0,0.00017618,2]
[392958414,1762179040241,-1939.58212311,0.00017636,2]
[392958415,1762179040250,-176.35,0.00017636,2]
[392958416,1762179040259,-168.0,0.00017699,2]
[392958417,1762179040269,-268.0,0.00017715,2]
[392958418,1762179040278,-226.36588681,0.00017722,4]
[392958419,1762179040287,-225.91451052,0.00017722,4]
[392958420,1762179040297,-168.0,0.00017738,2]
[392958421,1762179040306,-440.46876719,0.00017769,2]
[392958422,1762179040315,-500.0,0.00017769,2]
[392958423,1762179040324,-150.0,0.00017808,2]
[392958424,1762179040334,-150.0,0.00017808,2]
[392958425,1762179040343,-150.0,0.00017808,2]
[392958426,1762179040352,-150.0,0.00017808,2]
[392958427,1762179040361,-150.0,0.00017808,2]
[392958428,1762179040371,-150.0,0.00017808,2]
[392958429,1762179040379,-736.0,0.00017845,2]
[392958430,1762179040388,-268.0,0.00017879,2]
[392958431,1762179040397,-268.0,0.00017908,2]
[392958432,1762179040407,-9893.168875,0.0001792,2]
[392958433,1762179040416,-150.0,0.00017945,2]
[392958434,1762179040428,-268.0,0.00017967,2]
[392958435,1762179040437,-268.0,0.00017971,2]
[392958436,1762179040446,-206.305192,0.00018,2]
[392958437,1762179040455,-268.0,0.00018074,2]
[392958438,1762179040465,-190.64735062,0.00018082,2]
[392958439,1762179040474,-1000.0,0.00018082,2]
[392958440,1762179040483,-268.0,0.00018102,2]
[392958441,1762179040492,-150.0,0.00018151,2]
[392958442,1762179040503,-150.0,0.00018151,2]
[392958443,1762179040512,-500.0,0.00018151,2]
[392958444,1762179040521,-200.0,0.00018151,2]
[392958445,1762179040530,-220.63293975,0.00018151,2]
[392958446,1762179040539,-500.0,0.00018151,2]
[392958447,1762179040548,-168.0,0.00018174,2]
[392958448,1762179040558,-1632.62286669,0.00018266,2]
[392958449,1762179040567,-3292.0,0.00018285,2]
[392958450,1762179040576,-500.0,0.00018288,2]
[392958451,1762179040586,-500.0,0.00018288,2]
[392958452,1762179040595,-758.43650264,0.00018317,2]
[392958453,1762179040605,-524.5890351,0.0001835,2]
[392958454,1762179040615,-19254.87,0.00018356,2]
[392958455,1762179040624,-500.0,0.00018425,2]
[392958456,1762179040633,-500.0,0.00018425,2]
[392958457,1762179040642,-500.0,0.00018431,2]
[392958458,1762179040651,-500.0,0.00018431,2]
[392958459,1762179040660,-500.0,0.00018431,2]
[392958460,1762179040669,-1000.0,0.000185,2]
[392958461,1762179040678,-500.0,0.00018562,2]
[392958462,1762179040687,-500.0,0.00018562,2]
[392958463,1762179040697,-500.0,0.00018699,2]
[392958464,1762179040706,-500.0,0.00018699,2]
[392958465,1762179040715,-1000.0,0.0001876,2]
[392958466,1762179040725,-150.0,0.00018767,2]
[392958467,1762179040734,-150.0,0.00018767,2]
[392958468,1762179040743,-150.0,0.00018767,2]
[392958469,1762179040752,-150.0,0.00018767,2]
[392958470,1762179040761,-150.0,0.00018767,2]
[392958471,1762179040770,-150.0,0.00018767,2]
[392958472,1762179040779,-200.4129963,0.00018767,2]
[392958473,1762179040788,-500.0,0.00018767,2]
[392958474,1762179040797,-150.0,0.00018767,2]
[392958475,1762179040807,-267.46074303,0.00018799,2]
[392958476,1762179040816,-1448.0,0.00018825,2]
[392958477,1762179040825,-500.0,0.00018836,2]
[392958478,1762179040834,-500.0,0.00018836,2]
[392958479,1762179040843,-500.0,0.00018904,2]
[392958480,1762179040852,-166.94406514,0.00018973,2]
[392958481,1762179040861,-500.0,0.00018973,2]
[392958482,1762179040871,-500.0,0.00018979,2]
[392958483,1762179040880,-1000.0,0.00018979,2]
[392958484,1762179040889,-513.7537043,0.00018979,2]
[392958485,1762179040898,-151.0,0.00018997,2]
[392958486,1762179040907,-194.038425,0.00019,2]
[392958487,1762179040917,-300.0,0.00019,2]
[392958488,1762179040926,-112331.06150345,0.00019,2]
[392958489,1762179040935,-166.66,0.00019029,2]
[392958490,1762179040944,-500.0,0.00019041,2]
[392958491,1762179040953,-500.0,0.0001911,2]
[392958492,1762179040962,-500.0,0.00019178,2]
[392958493,1762179040971,-500.0,0.00019247,2]
[392958494,1762179040980,-1217.0,0.00019251,2]
[392958495,1762179040989,-500.0,0.00019315,2]
[392958496,1762179040998,-297.0,0.00019345,2]
[392958497,1762179041008,-500.0,0.00019384,2]
[392958498,1762179041017,-1939.58212311,0.00019388,2]
[392958499,1762179041027,-166.66,0.0001943,2]
[392958500,1762179041036,-1000.0,0.00019438,2]
[392958501,1762179041046,-154.31092621,0.00019452,2]
[392958502,1762179041056,-1000.0,0.000195,2]
[392958503,1762179041065,-222.38593079,0.00019521,2]
[392958504,1762179041074,-507.99392349,0.00019527,2]
[392958505,1762179041083,-382.0,0.00019551,2]
[392958506,1762179041092,-172.14,0.00019696,2]
[392958507,1762179041101,-2000.0,0.000197,2]
[392958508,1762179041111,-2000.0,0.000197,2]
[392958509,1762179041120,-172.14,0.00019806,2]
[392958510,1762179041130,-166.66,0.0001983,2]
[392958511,1762179041140,-176.35,0.00019841,2]
[392958512,1762179041149,-1632.62286669,0.00019928,2]
[392958513,1762179041158,-172.14,0.00019969,2]
[392958514,1762179041166,-404.76152552,0.00019999,2]
[392958515,1762179041176,-5000.0,0.0002,2]
[392958516,1762179041185,-150.0,0.0002,2]
[392958517,1762179041194,-30000.0,0.0002,2]
[392958518,1762179041203,-200.0,0.0002,2]
[392958519,1762179041212,-4609.0,0.00020114,2]
[392958520,1762179041221,-1000.0,0.00020116,2]
[392958521,1762179041230,-172.14,0.00020133,2]
[392958522,1762179041241,-252.45281151,0.00020168,2]
[392958523,1762179041251,-166.66,0.00020231,2]
[392958524,1762179041260,-156.39202041,0.0002043,2]
[392958525,1762179041270,-1000.0,0.000205,2]
[392958526,1762179041279,-166.66,0.00020632,2]
[392958527,1762179041289,-5109.336,0.00020731,2]
[392958528,1762179041298,-255.748,0.00020731,2]
[392958529,1762179041307,-1000.0,0.00020795,2]
[392958530,1762179041317,-350.0,0.00021,2]
[392958531,1762179041326,-166.66,0.00021032,2]
[392958532,1762179041337,-1058.24935506,0.0002113,2]
[392958533,1762179041346,-1939.58212311,0.0002114,2]
[392958534,1762179041355,-200.0,0.00021165,2]
[392958535,1762179041363,-172.12931598,0.00021463,2]
[392958536,1762179041373,-1000.0,0.000215,2]
[392958537,1762179041382,-169.65,0.0002158,2]
[392958538,1762179041392,-1632.62286669,0.0002159,2]
[392958539,1762179041402,-290.16483366,0.00021657,2]
[392958540,1762179041411,-1310.43,0.00021757,2]
[392958541,1762179041423,-1670.88,0.00021757,2]
[392958542,1762179041432,-7466.74,0.00021757,2]
[392958543,1762179041441,-9999.99,0.00021757,2]
[392958544,1762179041450,-9999.99,0.00021757,2]
[392958545,1762179041459,-3691.58,0.00021757,2]
[392958546,1762179041469,-500.0,0.00021918,4]
[392958547,1762179041478,-500.0,0.00021918,4]
[392958548,1762179041488,-500.0,0.00021918,4]
[392958549,1762179041500,-500.0,0.00021918,4]
[392958550,1762179041510,-500.0,0.00021918,4]
[392958551,1762179041519,-500.0,0.00021918,4]
[392958552,1762179041528,-500.0,0.00021918,4]
[392958553,1762179041537,-500.0,0.00021918,4]
[392958554,1762179041547,-500.0,0.00021918,4]
[392958555,1762179041556,-500.0,0.00021918,4]
[392958556,1762179041565,-500.0,0.00021918,4]
[392958557,1762179041574,-500.0,0.00021918,4]
[392958558,1762179041584,-500.0,0.00021918,4]
[392958559,1762179041593,-500.0,0.00021918,4]
[392958560,1762179041602,-500.0,0.00021918,4]
[392958561,1762179041611,-500.0,0.00021918,4]
[392958562,1762179041621,-150.0,0.00021918,2]
[392958563,1762179041630,-500.0,0.00021918,2]
[392958564,1762179041639,-150.0,0.00021918,2]
[392958565,1762179041648,-176.35,0.00022045,2]
[392958566,1762179041657,-435.66714502,0.00022055,2]
[392958567,1762179041666,-6453.0,0.00022125,2]
[392958568,1762179041675,-646.47,0.00022265,2]
[392958569,1762179041684,-150.0,0.00022389,4]
[392958570,1762179041694,-150.0,0.00022389,4]
[392958571,1762179041704,-150.15994699,0.00022389,4]
[392958572,1762179041713,-150.0,0.00022389,4]
[392958573,1762179041723,-150.0,0.00022389,4]
[392958574,1762179041732,-150.0,0.00022389,4]
[392958575,1762179041741,-150.0,0.00022389,4]
[392958576,1762179041750,-150.0,0.00022389,4]
[392958577,1762179041759,-150.0,0.00022389,4]
[392958578,1762179041768,-150.0,0.00022389,4]
[392958579,1762179041777,-150.0,0.00022389,4]
[392958580,1762179041787,-150.0,0.00022389,4]
[392958581,1762179041795,-150.0,0.00022389,4]
[392958582,1762179041805,-150.0,0.00022389,4]
[392958583,1762179041814,-150.0,0.00022389,4]
[392958584,1762179041823,-163.89453344,0.00022389,4]
[392958585,1762179041832,-150.0,0.00022389,4]
[392958586,1762179041841,-150.0,0.00022456,4]
[392958587,1762179041850,-2500.0,0.000225,2]
[392958588,1762179041860,-1000.0,0.000225,2]
[392958589,1762179041868,-150.0,0.00022502,4]
[392958590,1762179041877,-150.0,0.00022508,4]
[392958591,1762179041887,-150.0,0.00022513,4]
[392958592,1762179041896,-150.0,0.00022524,4]
[392958593,1762179041905,-150.0,0.00022545,4]
[392958594,1762179041914,-150.0,0.00022545,4]
[392958595,1762179041924,-150.0,0.00022591,4]
[392958596,1762179041933,-150.0,0.00022615,4]
[392958597,1762179041942,-150.0,0.00022626,4]
[392958598,1762179041951,-150.0,0.00022638,4]
[392958599,1762179041961,-150.0,0.00022638,4]
[392958600,1762179041970,-150.0,0.00022643,2]
[392958601,1762179041980,-150.0,0.00022658,4]
[392958602,1762179041989,-150.0,0.000227,4]
[392958603,1762179041998,-150.0,0.000227,4]
[392958604,1762179042008,-150.0,0.00022725,4]
[392958605,1762179042018,-150.0,0.00022728,4]
[392958606,1762179042027,-150.0,0.00022744,4]
[392958607,1762179042036,-150.0,0.00022744,4]
[392958608,1762179042045,-150.0,0.00022762,4]
[392958609,1762179042054,-150.0,0.00022792,4]
[392958610,1762179042064,-150.0,0.00022804,4]
[392958611,1762179042073,-150.0,0.00022841,4]
[392958612,1762179042083,-150.0,0.00022855,4]
[392958613,1762179042092,-150.0,0.00022855,4]
[392958614,1762179042101,-150.0,0.0002286,4]
[392958615,1762179042110,-150.0,0.00022863,4]
[392958616,1762179042119,-150.0,0.00022887,4]
[392958617,1762179042128,-150.0,0.00022887,4]
[392958618,1762179042137,-150.0,0.00022887,4]
[392958619,1762179042147,-1939.58212311,0.00022892,2]
[392958620,1762179042157,-150.0,0.00022927,4]
[392958621,1762179042167,-150.0,0.00022954,4]
[392958622,1762179042176,-150.0,0.00022981,4]
[392958623,1762179042185,-150.0,0.00022994,4]
[392958624,1762179042195,-400.0,0.00023,2]
[392958625,1762179042204,-150.0,0.00023011,4]
[392958626,1762179042213,-150.0,0.00023011,4]
[392958627,1762179042222,-150.0,0.00023011,4]
[392958628,1762179042231,-150.0,0.00023011,4]
[392958629,1762179042240,-150.0,0.00023061,4]
[392958630,1762179042249,-150.0,0.00023067,4]
[392958631,1762179042259,-150.0,0.000231,4]
[392958632,1762179042268,-150.0,0.000231,4]
[392958633,1762179042277,-150.0,0.00023129,4]
[392958634,1762179042286,-150.0,0.00023135,4]
[392958635,1762179042295,-150.0,0.00023135,4]
[392958636,1762179042304,-150.0,0.00023166,4]
[392958637,1762179042315,-150.0,0.00023166,4]
[392958638,1762179042323,-150.0,0.00023181,4]
[392958639,1762179042332,-351.33673282,0.00023191,2]
[392958640,1762179042342,-150.0,0.00023196,4]
[392958642,1762179042351,-150.0,0.00023218,4]
[392958644,1762179042360,-150.0,0.00023218,4]
[392958646,1762179042369,-150.0,0.00023218,4]
[392958648,1762179042379,-1632.62286669,0.00023252,2]
[392958650,1762179042388,-150.0,0.0002326,4]
[392958652,1762179042397,-150.0,0.00023263,4]
[392958654,1762179042406,-290.16483363,0.00023284,2]
[392958657,1762179042415,-150.0,0.00023294,4]
[392958659,1762179042429,-150.0,0.00023322,4]
[392958661,1762179042438,-150.0,0.00023322,4]
[392958663,1762179042447,-150.0,0.0002333,4]
[392958665,1762179042456,-150.0,0.00023337,4]
[392958666,1762179042466,-1000.0,0.00023382,7]
[392958668,1762179042475,-150.0,0.00023384,4]
[392958670,1762179042484,-150.0,0.00023384,4]
[392958672,1762179042496,-150.0,0.00023384,4]
[392958674,1762179042504,-150.0,0.00023398,4]
[392958676,1762179042514,-2000.0,0.000234,2]
[392958679,1762179042523,-1000.0,0.000234,2]
[392958682,1762179042532,-150.0,0.00023407,4]
[392958684,1762179042541,-150.0,0.00023455,4]
[392958687,1762179042550,-150.0,0.00023455,4]
[392958689,1762179042559,-150.0,0.00023465,4]
[392958691,1762179042568,-150.0,0.00023477,4]
[392958694,1762179042578,-150.0,0.00023477,4]
[392958697,1762179042586,-1000.0,0.000235,2]
[392958699,1762179042596,-150.0,0.00023508,4]
[392958701,1762179042605,-150.0,0.0002352,4]
[392958703,1762179042614,-150.0,0.00023532,4]
[392958706,1762179042623,-150.0,0.00023574,4]
[392958708,1762179042632,-150.0,0.00023599,4]
[392958710,1762179042641,-150.0,0.00023633,4]
[392958711,1762179042650,-150.0,0.00023633,4]
[392958714,1762179042660,-150.0,0.00023633,4]
[392958715,1762179042669,-150.0,0.00023633,4]
[392958717,1762179042678,-150.0,0.00023633,4]
[392958719,1762179042688,-150.0,0.00023633,4]
[392958721,1762179042698,-150.0,0.00023633,4]
[392958723,1762179042707,-150.0,0.00023633,4]
[392958725,1762179042717,-150.0,0.00023666,4]
[392958727,1762179042726,-150.0,0.00023692,4]
[392958729,1762179042735,-300.0,0.00023717,2]
[392958731,1762179042745,-150.0,0.00023734,4]
[392958733,1762179042755,-150.0,0.00023746,4]
[392958735,1762179042765,-150.0,0.00023757,4]
[392958737,1762179042775,-150.0,0.00023788,4]
[392958739,1762179042785,-150.0,0.00023788,4]
[392958741,1762179042794,-150.0,0.00023801,4]
[392958743,1762179042804,-150.0,0.00023811,4]
[392958745,1762179042813,-150.0,0.00023811,4]
[392958747,1762179042822,-150.0,0.00023859,4]
[392958756,1762179042832,-150.0,0.00023868,4]
[392958757,1762179043008,-150.0,0.00023882,4]
[392958758,1762179043018,-150.0,0.00023882,4]
[392958759,1762179043027,-150.0,0.00023882,4]
[392958760,1762179043038,-150.0,0.00023929,4]
[392958761,1762179043047,-150.0,0.00023935,4]
[392958762,1762179043056,-150.0,0.00023944,4]
[392958764,1762179043066,-150.0,0.00023944,4]
[392958766,1762179043075,-150.0,0.00023972,4]
[392958768,1762179043085,-150.0,0.00024003,4]
[392958769,1762179043095,-150.0,0.00024006,4]
[392958770,1762179043105,-150.0,0.00024047,4]
[392958771,1762179043114,-150.0,0.00024047,4]
[392958772,1762179043124,-150.0,0.00024047,4]
[392958773,1762179043133,-150.0,0.0002407,4]
[392958774,1762179043142,-150.0,0.00024085,4]
[392958775,1762179043151,-150.0,0.00024099,4]
[392958776,1762179043161,-150.0,0.00024099,4]
[392958777,1762179043170,-150.0,0.0002413,4]
[392958778,1762179043179,-150.0,0.0002413,4]
[392958779,1762179043188,-150.0,0.00024137,4]
[392958780,1762179043197,-150.0,0.00024166,4]
[392958781,1762179043206,-150.0,0.00024166,4]
[392958782,1762179043215,-150.0,0.00024198,4]
[392958783,1762179043224,-150.0,0.00024204,4]
[392958784,1762179043233,-176.35,0.0002425,2]
[392958785,1762179043243,-150.0,0.00024255,4]
[392958786,1762179043252,-150.0,0.00024255,4]
[392958787,1762179043261,-150.0,0.00024255,4]
[392958788,1762179043271,-150.0,0.00024255,4]
[392958789,1762179043280,-150.0,0.00024272,4]
[392958790,1762179043289,-150.0,0.00024284,4]
[392958791,1762179043298,-150.0,0.00024311,4]
[392958792,1762179043307,-9035.0,0.00024338,2]
[392958793,1762179043317,-150.0,0.00024339,4]
[392958794,1762179043327,-150.0,0.00024379,4]
[392958795,1762179043335,-150.0,0.00024379,4]
[392958796,1762179043345,-150.0,0.00024379,4]
[392958797,1762179043354,-150.0,0.00024403,4]
[392958798,1762179043364,-150.0,0.00024406,4]
[392958799,1762179043373,-150.0,0.0002441,4]
[392958800,1762179043382,-150.0,0.0002441,4]
[392958801,1762179043391,-150.0,0.00024424,4]
[392958802,1762179043400,-150.0,0.00024462,4]
[392958803,1762179043409,-150.0,0.00024473,4]
[392958804,1762179043419,-520.17380427,0.000245,2]
[392958805,1762179043432,-150.0,0.00024504,4]
[392958806,1762179043441,-150.0,0.00024521,4]
[392958807,1762179043451,-150.0,0.00024521,4]
[392958808,1762179043460,-150.0,0.00024537,4]
[392958809,1762179043470,-150.0,0.00024541,4]
[392958810,1762179043479,-150.0,0.00024566,4]
[392958811,1762179043489,-150.0,0.00024566,4]
[392958812,1762179043499,-150.0,0.00024608,4]
[392958813,1762179043508,-150.0,0.00024628,4]
[392958814,1762179043517,-150.0,0.00024628,4]
[392958815,1762179043526,-150.0,0.0002464,4]
[392958816,1762179043535,-1939.58212311,0.00024644,2]
[392958817,1762179043544,-150.0,0.00024651,4]
[392958818,1762179043554,-1000.0,0.00024658,2]
[392958819,1762179043563,-653.07,0.00024658,2]
[392958820,1762179043572,-150.0,0.00024675,4]
[392958821,1762179043581,-150.0,0.00024721,4]
[392958822,1762179043591,-150.0,0.00024721,4]
[392958823,1762179043600,-150.0,0.00024742,4]
[392958824,1762179043610,-150.0,0.00024752,4]
[392958825,1762179043619,-150.0,0.00024758,4]
[392958826,1762179043628,-150.0,0.00024764,4]
[392958827,1762179043637,-150.0,0.00024773,2]
[392958828,1762179043645,-477.5520043,0.000248,3]
[392958829,1762179043654,-432875.849389,0.000248,3]
[392958830,1762179043663,-150.0,0.00024809,4]
[392958831,1762179043672,-5000.0,0.00024824,2]
[392958832,1762179043681,-186.2923937,0.00024877,4]
[392958833,1762179043690,-296.56440007,0.00024877,4]
[392958834,1762179043700,-152.45231427,0.00024877,4]
[392958835,1762179043709,-181.26603437,0.00024877,4]
[392958836,1762179043718,-170.53692264,0.00024877,4]
[392958837,1762179043728,-287.16679279,0.00024877,4]
[392958838,1762179043737,-255.56280565,0.00024877,4]
[392958839,1762179043747,-194.59024156,0.00024877,4]
[392958840,1762179043756,-157.82063715,0.00024877,4]
[392958841,1762179043765,-181.86436565,0.00024877,4]
[392958842,1762179043775,-164.58940059,0.00024877,4]
[392958843,1762179043784,-150.00000001,0.00024877,4]
[392958844,1762179043793,-151.8412202,0.00024877,4]
[392958845,1762179043803,-191.53775451,0.00024877,4]
[392958846,1762179043812,-182.95396816,0.00024877,4]
[392958847,1762179043822,-196761.749722,0.0002489,3]
[392958848,1762179043831,-151.0,0.00024897,7]
[392958849,1762179043840,-300.0,0.00024899,10]
[392958850,1762179043850,-300.0,0.00024899,10]
[392958851,1762179043859,-300.0,0.00024899,10]
[392958852,1762179043868,-210204.392469,0.000249,3]
[392958853,1762179043877,-290.16483363,0.0002491,2]
[392958854,1762179043887,-1632.62286669,0.00024914,2]
[392958855,1762179043896,-256.30119241,0.00024999,10]
[392958856,1762179043905,-999.99999901,0.00025,2]
[392958857,1762179043914,-5000.0,0.00025,2]
[392958858,1762179043924,-1005.62,0.00025,2]
[392958859,1762179043933,-450.0,0.00025,2]
[392958860,1762179043942,-300.0,0.00025087,2]
[392958861,1762179043951,-500.0,0.00025143,7]
[392958862,1762179043960,-150.0,0.00025177,2]
[392958863,1762179043969,-500.0,0.00025288,7]
[392958864,1762179043979,-500.0,0.00025317,7]
[392958865,1762179043990,-600.0,0.0002532,7]
[392958866,1762179043999,-250.0,0.00025321,2]
[392958867,1762179044008,-600.0,0.0002535,7]
[392958868,1762179044018,-500.0,0.00025378,7]
[392958869,1762179044027,-600.0,0.00025383,7]
[392958870,1762179044036,-500.0,0.00025411,7]
[392958871,1762179044046,-500.0,0.0002548,7]
[392958872,1762179044055,-179.53219072,0.000255,30]
[392958873,1762179044064,-1005.62,0.000255,2]
[392958874,1762179044073,-789.45553778,0.00025514,7]
[392958875,1762179044083,-500.0,0.00025561,7]
[392958876,1762179044092,-600.0,0.0002564,7]
[392958877,1762179044102,-500.0,0.00025762,7]
[392958878,1762179044112,-329.14410644,0.00025868,2]
[392958879,1762179044121,-600.0,0.0002587,7]
[392958880,1762179044130,-156.39202041,0.00025919,2]
[392958881,1762179044140,-500.0,0.00025991,7]
[392958882,1762179044149,-500.0,0.00025997,7]
[392958883,1762179044158,-477.5520043,0.00026,7]
[392958884,1762179044167,-1000.0,0.00026027,2]
[392958885,1762179044176,-500.0,0.00026039,7]
[392958886,1762179044186,-500.0,0.00026056,7]
[392958887,1762179044195,-500.0,0.00026059,7]
[392958888,1762179044204,-500.0,0.00026201,7]
[392958889,1762179044214,-500.0,0.00026247,7]
[392958890,1762179044223,-1000.0,0.00026301,2]
[392958891,1762179044232,-500.0,0.00026376,7]
[392958892,1762179044243,-1939.58212311,0.00026396,2]
[392958893,1762179044252,-500.0,0.00026404,7]
[392958894,1762179044262,-500.0,0.00026413,7]
[392958895,1762179044271,-500.0,0.00026449,7]
[392958896,1762179044280,-600.0,0.00026454,7]
[392958897,1762179044290,-176.35,0.00026455,2]
[392958898,1762179044299,-290.16483363,0.00026537,2]
[392958899,1762179044308,-1000.0,0.00026575,2]
[392958900,1762179044318,-2751.0,0.00026575,2]
[392958901,1762179044327,-1632.62286669,0.00026576,2]
[392958902,1762179044336,-2000.0,0.00026671,2]
[392958903,1762179044345,-500.0,0.00026737,7]
[392958904,1762179044354,-11055.0,0.00026771,2]
[392958905,1762179044363,-1000.0,0.00026849,2]
[392958906,1762179044373,-500.0,0.00026868,7]
[392958907,1762179044382,-150.0,0.00027,2]
[392958908,1762179044391,-500.0,0.00027,2]
[392958909,1762179044400,-500.0,0.00027013,7]
[392958910,1762179044409,-2000.0,0.000271,2]
[392958911,1762179044418,-1000.0,0.000271,2]
[392958912,1762179044432,-500.0,0.00027121,7]
[392958913,1762179044441,-1000.0,0.00027123,2]
[392958914,1762179044450,-500.0,0.00027226,7]
[392958915,1762179044459,-500.0,0.00027242,7]
[392958916,1762179044470,-500.0,0.00027268,7]
[392958917,1762179044479,-600.0,0.00027362,7]
[392958918,1762179044489,-500.0,0.00027365,7]
[392958919,1762179044499,-150.0,0.00027369,2]
[392958920,1762179044508,-653.07,0.00027397,2]
[392958921,1762179044518,-1111.05,0.00027397,16]
[392958922,1762179044527,-1427.95,0.00027397,2]
[392958923,1762179044535,-350.0,0.00027397,7]
[392958924,1762179044544,-300.0,0.00027397,2]
[392958925,1762179044554,-181.3,0.00027397,10]
[392958926,1762179044563,-1000.0,0.00027397,2]
[392958927,1762179044573,-600.0,0.00027405,7]
[392958928,1762179044582,-500.0,0.00027415,7]
[392958929,1762179044591,-500.0,0.00027466,7]
[392958930,1762179044601,-2500.0,0.000275,2]
[392958931,1762179044610,-500.0,0.00027528,7]
[392958932,1762179044619,-500.0,0.00027546,7]
[392958933,1762179044628,-184.12,0.000276,17]
[392958934,1762179044637,-500.0,0.00027647,7]
[392958935,1762179044646,-255.88,0.00027671,7]
[392958936,1762179044655,-1000.0,0.00027671,2]
[392958937,1762179044664,-1154.53,0.00027671,30]
[392958938,1762179044674,-500.0,0.00027672,7]
[392958939,1762179044683,-2686.11,0.00027698,2]
[392958940,1762179044692,-500.0,0.00027749,7]
[392958941,1762179044702,-500.0,0.0002777,7]
[392958942,1762179044711,-500.0,0.00027774,7]
[392958943,1762179044721,-500.0,0.00027799,7]
[392958944,1762179044730,-519.33353199,0.00027802,7]
[392958945,1762179044740,-646.47,0.00027831,120]
[392958946,1762179044749,-500.0,0.00027914,7]
[392958947,1762179044758,-500.0,0.00027928,7]
[392958948,1762179044768,-337.76,0.00027939,2]
[392958949,1762179044777,-255.88,0.00027945,8]
[392958950,1762179044786,-1000.0,0.00027945,2]
[392958951,1762179044795,-300.0,0.00027999,10]
[392958952,1762179044805,-300.0,0.00027999,10]
[392958953,1762179044815,-11058.44723018,0.00028,2]
[392958954,1762179044824,-252743.48406385,0.00028,2]
[392958955,1762179044833,-200.0,0.00028,15]
[392958956,1762179044842,-952.7,0.00028068,2]
[392958957,1762179044852,-500.0,0.00028124,7]
[392958958,1762179044861,-1939.58212311,0.00028148,2]
[392958959,1762179044871,-290.16483363,0.00028164,2]
[392958960,1762179044880,-255.88,0.00028219,9]
[392958961,1762179044889,-1000.0,0.00028219,2]
[392958962,1762179044899,-1632.62286669,0.00028238,2]
[392958963,1762179044908,-500.0,0.00028269,7]
[392958964,1762179044917,-195000.0,0.000283,7]
[392958965,1762179044927,-5000.0,0.00028327,2]
[392958966,1762179044936,-600.0,0.00028464,7]
[392958967,1762179044945,-600.0,0.00028489,7]
[392958968,1762179044954,-600.0,0.00028492,7]
[392958969,1762179044963,-255.88,0.00028493,10]
[392958970,1762179044972,-1000.0,0.00028493,2]
[392958971,1762179044981,-151.0,0.00028497,7]
[392958972,1762179044992,-300.0,0.00028499,10]
[392958973,1762179045001,-178.5775,0.00028499,2]
[392958974,1762179045010,-476269.44781248,0.000285,2]
[392958975,1762179045152,-493.57774899,0.000285,2]
[392958976,1762179045192,-248.08466735,0.00015001,2]
[392958977,1762179045240,-294.51533265,0.000285,2]
[392958978,1762179045252,-383.01856,0.000285,2]
[392958980,1762179046076,-1.6e-07,0.000285,2]